[Event "Titled Tuesday Blitz January 10 Early 2023"]
[White "Nguyen Hong Nhung"]
[Black "Santos Ruiz, Miguel"]
[WhiteFideId "12412201"]
[BlackFideId "22291482"]
[WhiteElo "2003"]
[BlackElo "2590"]
[Result "0-1"]
[Round "07"]
[TimeControl "180+2"]
[Date "2023.01.10"]
[WhiteClock "0:00:15"]
[BlackClock "0:00:35"]

1. e4 {[%clk 0:03:00]}  e5 {[%clk 0:02:58]} 2. Nf3 {[%clk 0:03:00]}  d6 {[%clk 0:02:54]} 3. d4 {[%clk 0:03:00]}  Nf6 {[%clk 0:02:54]} 4. dxe5 {[%clk 0:02:55]}  Nxe4 {[%clk 0:02:54]} 5. exd6 {[%clk 0:02:48]}  Bxd6 {[%clk 0:02:49]} 6. Bd3 {[%clk 0:02:48]}  Nc5 {[%clk 0:02:48]} 7. O-O {[%clk 0:02:42]}  Nxd3 {[%clk 0:02:39]} 8. Qxd3 {[%clk 0:02:43]}  Nc6 {[%clk 0:02:16]} 9. Nc3 {[%clk 0:02:21]}  O-O {[%clk 0:01:59]} 10. Ng5 {[%clk 0:02:18]}  g6 {[%clk 0:01:59]} 11. Nge4 {[%clk 0:02:15]}  Bf5 {[%clk 0:01:34]} 12. Re1 {[%clk 0:01:33]}  Re8 {[%clk 0:01:23]} 13. a3 {[%clk 0:01:01]}  a6 {[%clk 0:00:46]} 14. Bd2 {[%clk 0:00:47]}  Qh4 {[%clk 0:00:40]} 15. g3 {[%clk 0:00:44]}  Qd8 {[%clk 0:00:32]} 16. f4 {[%clk 0:00:25]}  Bc5+ {[%clk 0:00:29]} 17. Kg2 {[%clk 0:00:24]}  Qxd3 {[%clk 0:00:29]} 18. cxd3 {[%clk 0:00:25]}  Bd4 {[%clk 0:00:23]} 19. Nd5 {[%clk 0:00:21]}  Rec8 {[%clk 0:00:22]} 20. Bc3 {[%clk 0:00:14]}  Kg7 {[%clk 0:00:17]} 21. Rac1 {[%clk 0:00:13]}  Be6 {[%clk 0:00:17]} 22. Ne7 {[%clk 0:00:09]}  Bxc3 {[%clk 0:00:17]} 23. Nxc6 {[%clk 0:00:02]}  Bxe1 {[%clk 0:00:17]} 24. Nd4 {[%clk 0:00:03]}  Ba5 {[%clk 0:00:16]} 25. Nxe6+ {[%clk 0:00:03]}  fxe6 {[%clk 0:00:17]} 26. b4 {[%clk 0:00:03]}  Bb6 {[%clk 0:00:17]} 27. Nc3 {[%clk 0:00:04]}  Rd8 {[%clk 0:00:17]} 28. Rd1 {[%clk 0:00:04]}  Rd4 {[%clk 0:00:17]} 29. Ne4 {[%clk 0:00:04]}  Rad8 {[%clk 0:00:18]} 30. Nf2 {[%clk 0:00:05]}  Kf6 {[%clk 0:00:17]} 31. Kf3 {[%clk 0:00:06]}  h5 {[%clk 0:00:18]} 32. h3 {[%clk 0:00:06]}  R4d7 {[%clk 0:00:18]} 33. Ne4+ {[%clk 0:00:06]}  Ke7 {[%clk 0:00:18]} 34. Ke2 {[%clk 0:00:06]}  a5 {[%clk 0:00:19]} 35. bxa5 {[%clk 0:00:06]}  Bxa5 {[%clk 0:00:19]} 36. Nc5 {[%clk 0:00:07]}  Bb6 {[%clk 0:00:19]} 37. Nxd7 {[%clk 0:00:07]}  Rxd7 {[%clk 0:00:20]} 38. g4 {[%clk 0:00:08]}  hxg4 {[%clk 0:00:20]} 39. hxg4 {[%clk 0:00:09]}  Rd4 {[%clk 0:00:20]} 40. Kf3 {[%clk 0:00:09]}  Ra4 {[%clk 0:00:20]} 41. f5 {[%clk 0:00:09]}  gxf5 {[%clk 0:00:20]} 42. gxf5 {[%clk 0:00:10]}  exf5 {[%clk 0:00:21]} 43. Re1+ {[%clk 0:00:10]}  Kd6 {[%clk 0:00:21]} 44. Rb1 {[%clk 0:00:10]}  Rxa3 {[%clk 0:00:21]} 45. Kf4 {[%clk 0:00:11]}  Rxd3 {[%clk 0:00:22]} 46. Kxf5 {[%clk 0:00:12]}  Rd5+ {[%clk 0:00:22]} 47. Ke4 {[%clk 0:00:12]}  Rc5 {[%clk 0:00:22]} 48. Rd1+ {[%clk 0:00:12]}  Kc6 {[%clk 0:00:22]} 49. Kf4 {[%clk 0:00:11]}  Ba5 {[%clk 0:00:23]} 50. Rb1 {[%clk 0:00:11]}  b6 {[%clk 0:00:24]} 51. Ke4 {[%clk 0:00:12]}  Kb7 {[%clk 0:00:24]} 52. Kd4 {[%clk 0:00:12]}  Rc3 {[%clk 0:00:25]} 53. Rb5 {[%clk 0:00:12]}  c5+ {[%clk 0:00:25]} 54. Kd5 {[%clk 0:00:10]}  Rd3+ {[%clk 0:00:26]} 55. Ke4 {[%clk 0:00:09]}  Rd4+ {[%clk 0:00:26]} 56. Ke5 {[%clk 0:00:09]}  Kc6 {[%clk 0:00:27]} 57. Rb1 {[%clk 0:00:09]}  b5 {[%clk 0:00:28]} 58. Rh1 {[%clk 0:00:09]}  Bb4 {[%clk 0:00:28]} 59. Rh6+ {[%clk 0:00:10]}  Kb7 {[%clk 0:00:29]} 60. Rh7+ {[%clk 0:00:11]}  Kb6 {[%clk 0:00:30]} 61. Rh6+ {[%clk 0:00:11]}  Ka5 {[%clk 0:00:31]} 62. Rh8 {[%clk 0:00:12]}  Ka4 {[%clk 0:00:31]} 63. Ra8+ {[%clk 0:00:11]}  Kb3 {[%clk 0:00:32]} 64. Rb8 {[%clk 0:00:12]}  Kc4 {[%clk 0:00:32]} 65. Kf5 {[%clk 0:00:11]}  Bc3 {[%clk 0:00:33]} 66. Re8 {[%clk 0:00:11]}  b4 {[%clk 0:00:34]} 67. Re2 {[%clk 0:00:12]}  b3 {[%clk 0:00:34]} 68. Ke6 {[%clk 0:00:13]}  b2 {[%clk 0:00:35]} 69. Rh2 {[%clk 0:00:13]}  b1=Q {[%clk 0:00:35]} 70. Rh5 {[%clk 0:00:14]}  Qe4+ {[%clk 0:00:35]} 71. Kf7 {[%clk 0:00:14]}  Rd7+ {[%clk 0:00:35]} 72. Kf8 {[%clk 0:00:14]}  Qe7+ {[%clk 0:00:34]} 73. Kg8 {[%clk 0:00:15]}  Qe8# {[%clk 0:00:35]} 0-1


[Site "https://www.chess.com"]

[Event "Titled Tuesday Blitz January 10 Early 2023"]
[White "Zahid, Sanatan"]
[Black "Shuvalov, Evgenij"]
[WhiteFideId "10201963"]
[BlackFideId "4187237"]
[WhiteElo "1930"]
[BlackElo "2038"]
[Result "1-0"]
[Round "07"]
[TimeControl "180+2"]
[Date "2023.01.10"]
[WhiteClock "0:01:13"]
[BlackClock "0:00:04"]

1. Nc3 {[%clk 0:02:51]}  e6 {[%clk 0:02:58]} 2. d4 {[%clk 0:02:51]}  Nf6 {[%clk 0:02:57]} 3. Bf4 {[%clk 0:02:50]}  a6 {[%clk 0:02:56]} 4. e4 {[%clk 0:02:50]}  d5 {[%clk 0:02:56]} 5. e5 {[%clk 0:02:51]}  Nfd7 {[%clk 0:02:56]} 6. Nce2 {[%clk 0:02:50]}  c5 {[%clk 0:02:57]} 7. c3 {[%clk 0:02:49]}  Nc6 {[%clk 0:02:57]} 8. Nf3 {[%clk 0:02:50]}  b5 {[%clk 0:02:52]} 9. g3 {[%clk 0:02:50]}  b4 {[%clk 0:02:50]} 10. h4 {[%clk 0:02:50]}  a5 {[%clk 0:02:50]} 11. Bh3 {[%clk 0:02:50]}  Ba6 {[%clk 0:02:50]} 12. O-O {[%clk 0:02:50]}  Nb6 {[%clk 0:02:41]} 13. Re1 {[%clk 0:02:49]}  Nc4 {[%clk 0:02:39]} 14. Bc1 {[%clk 0:02:49]}  Rb8 {[%clk 0:02:35]} 15. Nf4 {[%clk 0:02:48]}  Be7 {[%clk 0:02:34]} 16. Ng5 {[%clk 0:02:48]}  Bxg5 {[%clk 0:02:30]} 17. hxg5 {[%clk 0:02:48]}  bxc3 {[%clk 0:02:24]} 18. bxc3 {[%clk 0:02:47]}  cxd4 {[%clk 0:02:24]} 19. cxd4 {[%clk 0:02:48]}  Qb6 {[%clk 0:02:24]} 20. Bxe6 {[%clk 0:02:31]}  fxe6 {[%clk 0:02:21]} 21. Nxe6 {[%clk 0:02:32]}  Kf7 {[%clk 0:02:09]} 22. g6+ {[%clk 0:02:21]}  hxg6 {[%clk 0:01:35]} 23. Ng5+ {[%clk 0:02:21]}  Ke7 {[%clk 0:01:09]} 24. Qf3 {[%clk 0:02:05]}  Nd8 {[%clk 0:00:58]} 25. e6 {[%clk 0:01:38]}  Qxd4 {[%clk 0:00:44]} 26. Nf7 {[%clk 0:01:33]}  Nxe6 {[%clk 0:00:12]} 27. Bg5+ {[%clk 0:01:33]}  Kd7 {[%clk 0:00:10]} 28. Rad1 {[%clk 0:01:34]}  Nxg5 {[%clk 0:00:06]} 29. Nxg5 {[%clk 0:01:35]}  Qf6 {[%clk 0:00:06]} 30. Rxd5+ {[%clk 0:01:18]}  Kc7 {[%clk 0:00:06]} 31. Ne6+ {[%clk 0:01:14]}  Kb6 {[%clk 0:00:04]} 32. Rb1+ {[%clk 0:01:14]}  Ka7 {[%clk 0:00:04]} 33. Rd7+ {[%clk 0:01:13]} 1-0


[Site "https://www.chess.com"]

[Event "Titled Tuesday Blitz January 10 Early 2023"]
[White "Domingo Nunez, Ruben"]
[Black "Ansh M Shah"]
[WhiteFideId "22245570"]
[BlackFideId "25033379"]
[WhiteElo "2416"]
[BlackElo "2171"]
[Result "1-0"]
[Round "07"]
[TimeControl "180+2"]
[Date "2023.01.10"]
[WhiteClock "0:01:01"]
[BlackClock "0:00:13"]

1. e4 {[%clk 0:03:00]}  c6 {[%clk 0:02:59]} 2. Nf3 {[%clk 0:03:01]}  d5 {[%clk 0:03:00]} 3. Nc3 {[%clk 0:03:01]}  dxe4 {[%clk 0:03:00]} 4. Nxe4 {[%clk 0:03:02]}  Nf6 {[%clk 0:02:59]} 5. Nxf6+ {[%clk 0:03:03]}  exf6 {[%clk 0:02:59]} 6. h3 {[%clk 0:03:03]}  Bd6 {[%clk 0:02:59]} 7. d4 {[%clk 0:03:04]}  O-O {[%clk 0:02:59]} 8. Be2 {[%clk 0:03:05]}  Bf5 {[%clk 0:02:59]} 9. O-O {[%clk 0:03:06]}  Nd7 {[%clk 0:02:59]} 10. Re1 {[%clk 0:03:06]}  Bg6 {[%clk 0:02:59]} 11. c4 {[%clk 0:03:07]}  Re8 {[%clk 0:02:59]} 12. Be3 {[%clk 0:03:08]}  Qc7 {[%clk 0:02:59]} 13. Qb3 {[%clk 0:03:08]}  Rab8 {[%clk 0:02:59]} 14. Rad1 {[%clk 0:03:09]}  Bf4 {[%clk 0:02:59]} 15. Bf1 {[%clk 0:03:09]}  Bxe3 {[%clk 0:02:58]} 16. fxe3 {[%clk 0:03:10]}  c5 {[%clk 0:02:56]} 17. d5 {[%clk 0:03:09]}  Qd6 {[%clk 0:02:56]} 18. Bd3 {[%clk 0:03:07]}  Ne5 {[%clk 0:02:54]} 19. Nxe5 {[%clk 0:03:07]}  fxe5 {[%clk 0:02:47]} 20. e4 {[%clk 0:03:04]}  b6 {[%clk 0:02:37]} 21. Rf1 {[%clk 0:03:03]}  f6 {[%clk 0:02:36]} 22. Rd2 {[%clk 0:03:04]}  Kh8 {[%clk 0:02:34]} 23. Qc3 {[%clk 0:03:04]}  Rf8 {[%clk 0:02:33]} 24. a3 {[%clk 0:03:04]}  Rf7 {[%clk 0:02:33]} 25. b4 {[%clk 0:03:03]}  Rbf8 {[%clk 0:02:33]} 26. Rdf2 {[%clk 0:03:02]}  h6 {[%clk 0:02:30]} 27. b5 {[%clk 0:02:56]}  Bh7 {[%clk 0:02:29]} 28. a4 {[%clk 0:02:57]}  Qd7 {[%clk 0:02:29]} 29. Qc2 {[%clk 0:02:56]}  g6 {[%clk 0:02:27]} 30. Qd2 {[%clk 0:02:56]}  Kg7 {[%clk 0:02:27]} 31. Qc3 {[%clk 0:02:56]}  Qd6 {[%clk 0:02:23]} 32. Qc2 {[%clk 0:02:53]}  Qd7 {[%clk 0:02:21]} 33. Qb2 {[%clk 0:02:50]}  Qd6 {[%clk 0:02:21]} 34. Qb1 {[%clk 0:02:50]}  Qd7 {[%clk 0:02:20]} 35. Qa1 {[%clk 0:02:32]}  Qd6 {[%clk 0:02:19]} 36. g4 {[%clk 0:01:45]}  Qd7 {[%clk 0:01:33]} 37. a5 {[%clk 0:01:42]}  h5 {[%clk 0:01:15]} 38. Be2 {[%clk 0:01:42]}  hxg4 {[%clk 0:01:14]} 39. Bxg4 {[%clk 0:01:43]}  Qd6 {[%clk 0:01:14]} 40. Be6 {[%clk 0:01:44]}  Re7 {[%clk 0:01:12]} 41. axb6 {[%clk 0:01:43]}  axb6 {[%clk 0:01:12]} 42. Qa3 {[%clk 0:01:35]}  Bg8 {[%clk 0:01:12]} 43. Bxg8 {[%clk 0:01:31]}  Kxg8 {[%clk 0:01:12]} 44. Qg3 {[%clk 0:01:30]}  Rg7 {[%clk 0:01:11]} 45. Ra2 {[%clk 0:01:28]}  f5 {[%clk 0:01:10]} 46. Kh2 {[%clk 0:01:27]}  f4 {[%clk 0:01:09]} 47. Qg5 {[%clk 0:01:27]}  Qf6 {[%clk 0:01:00]} 48. Qg4 {[%clk 0:01:17]}  g5 {[%clk 0:00:47]} 49. Rg2 {[%clk 0:01:17]}  f3 {[%clk 0:00:39]} 50. Rg3 {[%clk 0:01:14]}  Qf4 {[%clk 0:00:28]} 51. Rxf3 {[%clk 0:01:07]}  Qd2+ {[%clk 0:00:27]} 52. Rg2 {[%clk 0:01:06]}  Qd4 {[%clk 0:00:24]} 53. Qe6+ {[%clk 0:01:06]}  Rff7 {[%clk 0:00:19]} 54. Qe8+ {[%clk 0:01:05]}  Kh7 {[%clk 0:00:18]} 55. Rxf7 {[%clk 0:01:06]}  Qxe4 {[%clk 0:00:15]} 56. Rxg7+ {[%clk 0:01:05]}  Kxg7 {[%clk 0:00:16]} 57. Qe7+ {[%clk 0:01:03]}  Kh8 {[%clk 0:00:14]} 58. Qf6+ {[%clk 0:01:02]}  Kh7 {[%clk 0:00:13]} 59. Qxg5 {[%clk 0:01:01]} 1-0


[Site "https://www.chess.com"]

[Event "Titled Tuesday Blitz January 10 Early 2023"]
[White "Vagman, Roy"]
[Black "Csonka, Balazs"]
[WhiteFideId "2828995"]
[BlackFideId "742910"]
[WhiteElo "2273"]
[BlackElo "2496"]
[Result "1-0"]
[Round "07"]
[TimeControl "180+2"]
[Date "2023.01.10"]
[WhiteClock "0:00:04"]
[BlackClock "0:00:02"]

1. c4 {[%clk 0:03:00]}  Nf6 {[%clk 0:02:55]} 2. g3 {[%clk 0:02:57]}  e5 {[%clk 0:02:50]} 3. Bg2 {[%clk 0:02:57]}  c6 {[%clk 0:02:49]} 4. Nf3 {[%clk 0:02:50]}  e4 {[%clk 0:02:49]} 5. Nd4 {[%clk 0:02:49]}  d5 {[%clk 0:02:48]} 6. cxd5 {[%clk 0:02:48]}  cxd5 {[%clk 0:02:43]} 7. O-O {[%clk 0:02:48]}  Qb6 {[%clk 0:02:26]} 8. e3 {[%clk 0:02:24]}  Nc6 {[%clk 0:02:22]} 9. Nxc6 {[%clk 0:02:22]}  bxc6 {[%clk 0:02:23]} 10. d4 {[%clk 0:02:19]}  Ba6 {[%clk 0:01:43]} 11. Re1 {[%clk 0:02:18]}  Bb4 {[%clk 0:01:41]} 12. Bd2 {[%clk 0:02:16]}  O-O {[%clk 0:01:39]} 13. Bxb4 {[%clk 0:02:13]}  Qxb4 {[%clk 0:01:40]} 14. Qd2 {[%clk 0:02:14]}  Rfb8 {[%clk 0:01:21]} 15. Qxb4 {[%clk 0:02:09]}  Rxb4 {[%clk 0:01:22]} 16. b3 {[%clk 0:02:09]}  c5 {[%clk 0:01:07]} 17. dxc5 {[%clk 0:02:06]}  Rc8 {[%clk 0:01:07]} 18. Rc1 {[%clk 0:02:05]}  Nd7 {[%clk 0:01:00]} 19. Nc3 {[%clk 0:01:59]}  Rxc5 {[%clk 0:00:59]} 20. Na4 {[%clk 0:01:48]}  Rxc1+ {[%clk 0:00:52]} 21. Rxc1 {[%clk 0:01:48]}  g6 {[%clk 0:00:50]} 22. Rc7 {[%clk 0:01:44]}  Rb7 {[%clk 0:00:48]} 23. Rc8+ {[%clk 0:01:33]}  Kg7 {[%clk 0:00:47]} 24. Rc1 {[%clk 0:01:12]}  Bb5 {[%clk 0:00:23]} 25. Nc5 {[%clk 0:01:10]}  Rb6 {[%clk 0:00:17]} 26. Bh3 {[%clk 0:00:35]}  Ne5 {[%clk 0:00:11]} 27. Bf1 {[%clk 0:00:23]}  Nf3+ {[%clk 0:00:11]} 28. Kg2 {[%clk 0:00:22]}  Bxf1+ {[%clk 0:00:11]} 29. Kxf1 {[%clk 0:00:19]}  Nxh2+ {[%clk 0:00:10]} 30. Ke2 {[%clk 0:00:19]}  Ng4 {[%clk 0:00:09]} 31. Nd7 {[%clk 0:00:15]}  Rb7 {[%clk 0:00:05]} 32. Nc5 {[%clk 0:00:12]}  Rb6 {[%clk 0:00:04]} 33. Nd7 {[%clk 0:00:13]}  Rb7 {[%clk 0:00:05]} 34. Nc5 {[%clk 0:00:11]}  Re7 {[%clk 0:00:05]} 35. Rd1 {[%clk 0:00:09]}  Nf6 {[%clk 0:00:06]} 36. b4 {[%clk 0:00:08]}  h5 {[%clk 0:00:06]} 37. a4 {[%clk 0:00:08]}  g5 {[%clk 0:00:04]} 38. b5 {[%clk 0:00:09]}  Rc7 {[%clk 0:00:05]} 39. Rc1 {[%clk 0:00:08]}  Kg6 {[%clk 0:00:05]} 40. a5 {[%clk 0:00:08]}  Nd7 {[%clk 0:00:04]} 41. Nb3 {[%clk 0:00:04]}  Rxc1 {[%clk 0:00:05]} 42. Nxc1 {[%clk 0:00:05]}  h4 {[%clk 0:00:05]} 43. gxh4 {[%clk 0:00:04]}  gxh4 {[%clk 0:00:06]} 44. Kf1 {[%clk 0:00:05]}  Kf5 {[%clk 0:00:06]} 45. Kg2 {[%clk 0:00:06]}  Kg4 {[%clk 0:00:07]} 46. Nb3 {[%clk 0:00:05]}  h3+ {[%clk 0:00:08]} 47. Kh2 {[%clk 0:00:06]}  Kf3 {[%clk 0:00:08]} 48. Kxh3 {[%clk 0:00:06]}  Kxf2 {[%clk 0:00:08]} 49. b6 {[%clk 0:00:05]}  axb6 {[%clk 0:00:05]} 50. a6 {[%clk 0:00:06]}  b5 {[%clk 0:00:05]} 51. Nd4 {[%clk 0:00:04]}  b4 {[%clk 0:00:04]} 52. Kg4 {[%clk 0:00:03]}  Kxe3 {[%clk 0:00:02]} 53. Nc6 {[%clk 0:00:03]}  Nb6 {[%clk 0:00:03]} 54. Nxb4 {[%clk 0:00:03]}  d4 {[%clk 0:00:03]} 55. a7 {[%clk 0:00:03]}  d3 {[%clk 0:00:03]} 56. Nd5+ {[%clk 0:00:02]}  Nxd5 {[%clk 0:00:03]} 57. a8=Q {[%clk 0:00:03]}  d2 {[%clk 0:00:03]} 58. Qxd5 {[%clk 0:00:03]}  Ke2 {[%clk 0:00:04]} 59. Qxe4+ {[%clk 0:00:03]}  Kf2 {[%clk 0:00:05]} 60. Qf4+ {[%clk 0:00:03]}  Ke2 {[%clk 0:00:04]} 61. Qf3+ {[%clk 0:00:03]}  Ke1 {[%clk 0:00:04]} 62. Kg3 {[%clk 0:00:04]}  d1=Q {[%clk 0:00:02]} 63. Qf2# {[%clk 0:00:04]} 1-0


[Site "https://www.chess.com"]

[Event "Titled Tuesday Blitz January 10 Early 2023"]
[White "Begunov, Konstantin"]
[Black "Liyanage, Ranindu Dilshan"]
[WhiteFideId "4118510"]
[BlackFideId "9915834"]
[WhiteElo "2325"]
[BlackElo "2342"]
[Result "0-1"]
[Round "07"]
[TimeControl "180+2"]
[Date "2023.01.10"]
[WhiteClock "0:00:10"]
[BlackClock "0:00:48"]

1. d4 {[%clk 0:02:42]}  Nf6 {[%clk 0:02:55]} 2. c4 {[%clk 0:02:42]}  e6 {[%clk 0:02:55]} 3. Nf3 {[%clk 0:02:41]}  d5 {[%clk 0:02:55]} 4. Nc3 {[%clk 0:02:41]}  Bb4 {[%clk 0:02:54]} 5. Qa4+ {[%clk 0:02:38]}  Nc6 {[%clk 0:02:54]} 6. Ne5 {[%clk 0:02:39]}  Bd7 {[%clk 0:02:46]} 7. Nxc6 {[%clk 0:02:39]}  Bxc3+ {[%clk 0:02:46]} 8. bxc3 {[%clk 0:02:39]}  Bxc6 {[%clk 0:02:46]} 9. Qb3 {[%clk 0:02:40]}  dxc4 {[%clk 0:02:45]} 10. Qxc4 {[%clk 0:02:41]}  Bd5 {[%clk 0:02:42]} 11. Qb4 {[%clk 0:02:33]}  c5 {[%clk 0:02:24]} 12. Qxc5 {[%clk 0:02:19]}  Rc8 {[%clk 0:02:22]} 13. Qb5+ {[%clk 0:02:11]}  Bc6 {[%clk 0:02:21]} 14. Qb2 {[%clk 0:02:08]}  Qa5 {[%clk 0:02:20]} 15. f3 {[%clk 0:02:04]}  e5 {[%clk 0:02:20]} 16. Bd2 {[%clk 0:01:57]}  O-O {[%clk 0:02:18]} 17. e4 {[%clk 0:01:56]}  exd4 {[%clk 0:02:11]} 18. cxd4 {[%clk 0:01:57]}  Qh5 {[%clk 0:02:10]} 19. Be2 {[%clk 0:01:42]}  Rfe8 {[%clk 0:02:09]} 20. d5 {[%clk 0:01:25]}  Nxd5 {[%clk 0:01:40]} 21. exd5 {[%clk 0:00:56]}  Qxd5 {[%clk 0:01:41]} 22. Kf1 {[%clk 0:00:21]}  Ba4 {[%clk 0:01:10]} 23. Bc3 {[%clk 0:00:19]}  Re3 {[%clk 0:01:07]} 24. Rd1 {[%clk 0:00:18]}  Bxd1 {[%clk 0:01:07]} 25. Bxd1 {[%clk 0:00:15]}  Qxd1+ {[%clk 0:01:08]} 26. Kf2 {[%clk 0:00:14]}  Qxh1 {[%clk 0:01:00]} 27. Kxe3 {[%clk 0:00:14]}  Qg1+ {[%clk 0:00:59]} 28. Kf4 {[%clk 0:00:13]}  Qxh2+ {[%clk 0:00:56]} 29. Ke3 {[%clk 0:00:12]}  Re8+ {[%clk 0:00:56]} 30. Kf2 {[%clk 0:00:10]}  Qh4+ {[%clk 0:00:54]} 31. Kg1 {[%clk 0:00:11]}  Qe7 {[%clk 0:00:53]} 32. Qd2 {[%clk 0:00:10]}  Rc8 {[%clk 0:00:49]} 33. Qd4 {[%clk 0:00:10]}  Qc5 {[%clk 0:00:48]} 0-1


[Site "https://www.chess.com"]

[Event "Titled Tuesday Blitz January 10 Early 2023"]
[White "Ortega Ruiz, Jose Miguel"]
[Black "Mirzoev, Azer"]
[WhiteFideId "2209713"]
[BlackFideId "13400304"]
[WhiteElo "2351"]
[BlackElo "2416"]
[Result "0-1"]
[Round "07"]
[TimeControl "180+2"]
[Date "2023.01.10"]
[WhiteClock "0:00:11"]
[BlackClock "0:00:24"]

1. c4 {[%clk 0:03:00]}  c5 {[%clk 0:02:59]} 2. Nf3 {[%clk 0:02:53]}  g6 {[%clk 0:02:59]} 3. g3 {[%clk 0:02:54]}  Bg7 {[%clk 0:02:59]} 4. Bg2 {[%clk 0:02:55]}  Nc6 {[%clk 0:02:58]} 5. O-O {[%clk 0:02:56]}  Nh6 {[%clk 0:02:58]} 6. Nc3 {[%clk 0:02:52]}  Nf5 {[%clk 0:02:59]} 7. d3 {[%clk 0:02:51]}  h5 {[%clk 0:02:59]} 8. h4 {[%clk 0:02:49]}  d6 {[%clk 0:02:57]} 9. e3 {[%clk 0:02:47]}  a6 {[%clk 0:02:54]} 10. Ng5 {[%clk 0:02:48]}  Bd7 {[%clk 0:02:51]} 11. Rb1 {[%clk 0:02:46]}  b5 {[%clk 0:02:49]} 12. cxb5 {[%clk 0:02:46]}  axb5 {[%clk 0:02:48]} 13. Qb3 {[%clk 0:02:43]}  O-O {[%clk 0:02:47]} 14. Nxb5 {[%clk 0:02:42]}  Rb8 {[%clk 0:02:41]} 15. a4 {[%clk 0:02:38]}  Nb4 {[%clk 0:02:38]} 16. Bd2 {[%clk 0:02:34]}  Bxb5 {[%clk 0:02:36]} 17. axb5 {[%clk 0:02:35]}  Rxb5 {[%clk 0:02:36]} 18. Bd5 {[%clk 0:02:24]}  Qe8 {[%clk 0:02:24]} 19. Bc4 {[%clk 0:02:24]}  Rb8 {[%clk 0:02:24]} 20. Rfd1 {[%clk 0:01:56]}  e6 {[%clk 0:02:20]} 21. Bc3 {[%clk 0:01:55]}  d5 {[%clk 0:02:15]} 22. Bxg7 {[%clk 0:01:53]}  Kxg7 {[%clk 0:02:14]} 23. Qc3+ {[%clk 0:01:53]}  Kg8 {[%clk 0:01:58]} 24. Bb3 {[%clk 0:01:47]}  Qe7 {[%clk 0:01:58]} 25. e4 {[%clk 0:01:46]}  Nd4 {[%clk 0:01:51]} 26. Re1 {[%clk 0:01:39]}  Qf6 {[%clk 0:01:38]} 27. exd5 {[%clk 0:01:35]}  exd5 {[%clk 0:01:38]} 28. Bd1 {[%clk 0:01:34]}  Rfc8 {[%clk 0:01:32]} 29. Kg2 {[%clk 0:01:28]}  Kg7 {[%clk 0:01:31]} 30. Ra1 {[%clk 0:01:18]}  Rc7 {[%clk 0:01:21]} 31. Ra5 {[%clk 0:01:18]}  Qb6 {[%clk 0:01:10]} 32. Ra1 {[%clk 0:01:02]}  Kg8 {[%clk 0:01:08]} 33. g4 {[%clk 0:00:50]}  hxg4 {[%clk 0:01:06]} 34. Bxg4 {[%clk 0:00:51]}  Qf6 {[%clk 0:01:05]} 35. Ra5 {[%clk 0:00:45]}  Qf4 {[%clk 0:01:00]} 36. f3 {[%clk 0:00:43]}  Kg7 {[%clk 0:00:55]} 37. Rxc5 {[%clk 0:00:41]}  Rxc5 {[%clk 0:00:54]} 38. Qxc5 {[%clk 0:00:42]}  Nxd3 {[%clk 0:00:54]} 39. Qc3 {[%clk 0:00:18]}  Nxe1+ {[%clk 0:00:52]} 40. Kf1 {[%clk 0:00:18]}  Nc2 {[%clk 0:00:46]} 41. Nh3 {[%clk 0:00:18]}  Qe3 {[%clk 0:00:45]} 42. Nf2 {[%clk 0:00:17]}  Qxc3 {[%clk 0:00:44]} 43. bxc3 {[%clk 0:00:18]}  Rb1+ {[%clk 0:00:43]} 44. Kg2 {[%clk 0:00:17]}  Ne3+ {[%clk 0:00:43]} 45. Kg3 {[%clk 0:00:17]}  Ndf5+ {[%clk 0:00:43]} 46. Kf4 {[%clk 0:00:17]}  Ng2+ {[%clk 0:00:43]} 47. Ke5 {[%clk 0:00:15]}  Re1+ {[%clk 0:00:42]} 48. Kxd5 {[%clk 0:00:15]}  Ngxh4 {[%clk 0:00:42]} 49. c4 {[%clk 0:00:14]}  Ne3+ {[%clk 0:00:40]} 50. Kd4 {[%clk 0:00:14]}  Nhf5+ {[%clk 0:00:37]} 51. Kd3 {[%clk 0:00:12]}  Nxg4 {[%clk 0:00:35]} 52. fxg4 {[%clk 0:00:13]}  Ne7 {[%clk 0:00:35]} 53. Ne4 {[%clk 0:00:12]}  Rg1 {[%clk 0:00:31]} 54. g5 {[%clk 0:00:12]}  Rg4 {[%clk 0:00:29]} 55. Kd4 {[%clk 0:00:11]}  Nc6+ {[%clk 0:00:28]} 56. Kd5 {[%clk 0:00:11]}  Nb4+ {[%clk 0:00:27]} 57. Ke5 {[%clk 0:00:12]}  Nd3+ {[%clk 0:00:26]} 58. Kd4 {[%clk 0:00:12]}  Nf2 {[%clk 0:00:26]} 59. Ke3 {[%clk 0:00:12]}  Nxe4 {[%clk 0:00:25]} 60. Kf3 {[%clk 0:00:11]}  Rh4 {[%clk 0:00:24]} 0-1


[Site "https://www.chess.com"]

[Event "Titled Tuesday Blitz January 10 Early 2023"]
[White "Ljukin, Sergei"]
[Black "Barria Zuniga, Daniel"]
[WhiteFideId "14102200"]
[BlackFideId "3400816"]
[WhiteElo "2362"]
[BlackElo "2341"]
[Result "1-0"]
[Round "07"]
[TimeControl "180+2"]
[Date "2023.01.10"]
[WhiteClock "0:01:34"]
[BlackClock "0:01:05"]

1. e4 {[%clk 0:02:48]}  c5 {[%clk 0:02:54]} 2. Nf3 {[%clk 0:02:48]}  Nc6 {[%clk 0:02:54]} 3. d4 {[%clk 0:02:48]}  cxd4 {[%clk 0:02:54]} 4. Nxd4 {[%clk 0:02:49]}  e6 {[%clk 0:02:55]} 5. Nc3 {[%clk 0:02:49]}  a6 {[%clk 0:02:54]} 6. Nxc6 {[%clk 0:02:48]}  bxc6 {[%clk 0:02:54]} 7. Bd3 {[%clk 0:02:48]}  Ne7 {[%clk 0:02:54]} 8. e5 {[%clk 0:02:47]}  Ng6 {[%clk 0:02:55]} 9. f4 {[%clk 0:02:46]}  d6 {[%clk 0:02:40]} 10. exd6 {[%clk 0:02:43]}  Bxd6 {[%clk 0:02:40]} 11. O-O {[%clk 0:02:43]}  O-O {[%clk 0:02:39]} 12. Ne4 {[%clk 0:02:37]}  Be7 {[%clk 0:02:36]} 13. Ng5 {[%clk 0:02:33]}  h6 {[%clk 0:02:20]} 14. Nxf7 {[%clk 0:02:22]}  Kxf7 {[%clk 0:02:08]} 15. Qh5 {[%clk 0:02:21]}  Qd4+ {[%clk 0:02:03]} 16. Kh1 {[%clk 0:02:21]}  Qf6 {[%clk 0:02:03]} 17. Bd2 {[%clk 0:02:12]}  Rd8 {[%clk 0:01:56]} 18. Bc3 {[%clk 0:02:05]}  Rd5 {[%clk 0:01:52]} 19. f5 {[%clk 0:01:58]}  Qg5 {[%clk 0:01:28]} 20. Qxg6+ {[%clk 0:01:40]}  Qxg6 {[%clk 0:01:23]} 21. fxg6+ {[%clk 0:01:40]}  Kg8 {[%clk 0:01:07]} 22. Rf7 {[%clk 0:01:39]}  Bf8 {[%clk 0:01:07]} 23. Raf1 {[%clk 0:01:37]}  e5 {[%clk 0:01:05]} 24. Rxf8# {[%clk 0:01:34]} 1-0


[Site "https://www.chess.com"]